fUST/lending_fUST_20240628
["ID","MTS","AMOUNT","RATE_DAILY","PERIOD"]
[330506799,1719531040271,-679.03,0.00041095,120]
[330506800,1719531040282,-500.0,0.00041095,120]
[330506801,1719531040292,-600.15547649,0.00041095,120]
[330506802,1719531040301,-500.0,0.00041095,120]
[330506803,1719531040312,-500.0,0.00041095,2]
[330506804,1719531040322,-588.42278793,0.00041095,120]
[330506805,1719531040332,-500.0,0.00041095,120]
[330506807,1719531040342,-500.0,0.00041095,120]
[330506808,1719531040351,-287.85606641,0.00041095,120]
[330506809,1719531040361,-767.15,0.00041095,120]
[330506810,1719531040371,-500.0,0.00041095,120]
[330506811,1719531040381,-500.0,0.00041095,120]
[330506812,1719531040391,-500.0,0.00041095,120]
[330506813,1719531040400,-500.0,0.00041095,120]
[330506814,1719531040410,-500.0,0.00041095,120]
[330506815,1719531040419,-732.7,0.00041095,120]
[330506816,1719531040430,-500.0,0.00041095,120]
[330506817,1719531040440,-1649.36,0.00041095,120]
[330506818,1719531040450,-500.0,0.00041095,120]
[330506819,1719531040459,-500.0,0.00041095,120]
[330506820,1719531040469,-500.0,0.00041095,120]
[330506821,1719531040479,-500.0,0.00041095,120]
[330506822,1719531040488,-604.79,0.00041095,120]
[330506823,1719531040497,-522.06594521,0.00041095,120]
[330506824,1719531040507,-1060.38,0.00041095,120]
[330506825,1719531040517,-825.34,0.00041095,120]
[330506826,1719531040526,-990.47,0.00041095,120]
[330506827,1719531040535,-500.0,0.00041095,120]
[330506828,1719531040547,-500.0,0.00041095,120]
[330506829,1719531040557,-536.67937763,0.00041095,120]
[330506830,1719531040566,-500.0,0.00041095,120]
[330506831,1719531040576,-500.0,0.00041095,120]
[330506832,1719531040585,-500.0,0.00041095,120]
[330506833,1719531040595,-500.0,0.00041095,120]
[330506834,1719531040605,-500.0,0.00041095,120]
[330506835,1719531040614,-500.0,0.00041095,120]
[330506836,1719531040624,-500.0,0.00041095,120]
[330506837,1719531040633,-377.80451404,0.00041095,120]
[330506838,1719531040653,-122.19548596,0.00041095,120]
[330506839,1719531040663,-500.0,0.00041095,120]
[330506840,1719531040672,-159.87259529,0.00041095,120]
[330506841,1719531040682,-500.0,0.00041095,120]
[330506842,1719531040693,-500.0,0.00041095,120]
[330506843,1719531040703,-128.13032951,0.00041095,120]
[330506844,1719531040734,150.0,0.000204,2]
[330506845,1719531040774,150.0,0.000254,2]
[330506865,1719531043840,-308.11920521,0.00030826,4]
[330506867,1719531047030,-618.79,0.00030826,4]
[330506868,1719531143103,152.79665381,0.0002909,2]
[330506869,1719531143691,152.79665381,0.00030408,7]
[330506870,1719531144188,153.37541078,0.00028129,2]
[330506871,1719531144718,153.37541078,0.00029054,2]
[330506872,1719531145262,153.37541078,0.00029427,2]
[330506873,1719531146327,153.37541078,0.00030078,7]
[330506874,1719531146838,153.37541078,0.00030491,7]
[330506877,1719531415399,9987.96722875,0.000125,2]
[330506878,1719531425847,1000.0,0.00012,7]
[330506879,1719531437919,323.66188023,0.0001,2]
[330506880,1719531470222,2099.40710865,0.0001,2]
[330506881,1719531471525,13386.27437388,0.0001,2]
[330506882,1719531502402,402.58396579,0.00012121,2]
[330506884,1719531521733,906.09972588,0.00012121,2]
[330506889,1719531686125,374.02993277,9.999e-05,2]
[330506892,1719531786137,373.11121635,9.999e-05,2]
[330506896,1719531921660,1568.73091691,0.0001212,2]
[330506897,1719531953159,-243.28981063,0.000189,2]
[330506898,1719531953179,-167.935209,0.00021096,2]
[330506899,1719531953198,-46.36999961,0.00023782,2]
[330506901,1719532028119,-157.53820426,0.00023782,2]
[330506902,1719532030102,-554.900796,0.00023782,2]
[330506903,1719532030123,-243.28981063,0.000239,2]
[330506904,1719532030143,-626.94044999,0.00024971,2]
[330506905,1719532030163,-615.5361584,0.00025205,2]
[330506906,1719532039093,-1623.20281641,0.00025205,2]
[330506907,1719532039114,-250.597196,0.00026727,2]
[330506908,1719532039136,-163.7248403,0.00027277,2]
[330506909,1719532039157,-166.666666,0.00027309,2]
[330506910,1719532039178,-300.0,0.00027814,2]
[330506911,1719532039201,-300.0,0.00027814,2]
[330506912,1719532039224,-2319.1706397,0.00027815,2]
[330506913,1719532039243,-1589.190272,0.0002799,2]
[330506914,1719532039262,-153.06457886,0.00028074,2]
[330506915,1719532039282,-250.0,0.00028313,2]
[330506916,1719532039304,-2308.9600839,0.00028503,2]
[330506917,1719532039322,-162.79161852,0.00028778,2]
[330506918,1719532039343,-671.11852142,0.00029561,2]
[330506919,1719532039364,-314.452756,0.0002963,2]
[330506920,1719532039391,-657.61093036,0.0002963,2]
[330506921,1719532039419,-479.032146,0.0002963,2]
[330506922,1719532047798,-152.5162129,0.00028243,2]
[330506923,1719532047818,-153.06457886,0.00028273,2]
[330506924,1719532047841,-152.5162129,0.00028565,2]
[330506925,1719532047861,-152.5162129,0.00029269,2]
[330506926,1719532047881,-153.06457886,0.00029326,2]
[330506927,1719532047906,-152.5162129,0.00029422,2]
[330506928,1719532047927,-7970.85357771,0.0002963,2]
[330506929,1719532149099,-166.568317,0.00021096,2]
[330506931,1719532163104,-300.0,0.00029629,2]
[330506932,1719532163127,-300.0,0.00029629,2]
[330506933,1719532163146,-1903.83089693,0.00029629,30]
[330506934,1719532167089,-934.98789903,0.00029629,30]
[330506967,1719532231702,-1010.87973439,0.00029629,30]
[330506969,1719532231715,-569.0,0.00029629,30]
[330506970,1719532231726,-913.496781,0.00029629,30]
[330506972,1719532231738,-4752.20157654,0.00029629,30]
[330506974,1719532231749,-269.24912565,0.00029629,30]
[330506993,1719532237634,-655.23892612,0.00029629,30]
[330506994,1719532237696,-8991.11506034,0.00029629,30]
[330506995,1719532237707,-2633.21026696,0.0002963,2]
[330506996,1719532237847,-2107.90731102,0.0002963,2]
[330506997,1719532237860,-3792.79999999,0.0002963,2]
[330507005,1719532238012,-2300.05331881,0.0002963,2]
[330507026,1719532239760,-4644.07969315,0.0002963,2]
[330507027,1719532239771,-290.17879074,0.00029792,2]
[330507028,1719532239781,-8673.71837136,0.00029793,2]
[330507029,1719532239791,-152.5162129,0.00029809,2]
[330507030,1719532239800,-6971.98727304,0.00029904,2]
[330507031,1719532239810,-2116.05892571,0.00029979,2]
[330507032,1719532239821,-218.5,0.0003,14]
[330507033,1719532239832,-153.06457886,0.00030021,7]
[330507034,1719532239842,-153.06457886,0.00030262,7]
[330507035,1719532239853,-153.06457886,0.00030335,7]
[330507036,1719532239864,-153.06457886,0.00030807,7]
[330507037,1719532239874,-152.5162129,0.00030991,7]
[330507038,1719532239884,-153.06457886,0.00031108,7]
[330507039,1719532239893,-784.73967311,0.00031463,2]
[330507040,1719532239903,-153.06457886,0.00031508,7]
[330507041,1719532239914,-153.06457886,0.00031526,7]
[330507042,1719532239924,-152.5162129,0.00031595,7]
[330507043,1719532239934,-33.90265951,0.00031743,2]
[330507044,1719532239956,-129.84899149,0.00031743,2]
[330507045,1719532239968,-151.58662637,0.00031745,7]
[330507046,1719532239978,-152.5162129,0.00032317,7]
[330507047,1719532239988,-671.11852139,0.0003242,2]
[330507048,1719532240002,-152.5162129,0.00032707,7]
[330507049,1719532240012,-152.5162129,0.0003285,7]
[330507050,1719532240022,-152.5162129,0.00033294,7]
[330507051,1719532240033,-152.5162129,0.00033341,7]
[330507052,1719532240043,-153.0,0.00033684,2]
[330507053,1719532240053,-153.0,0.00033684,2]
[330507054,1719532240063,-153.0,0.00033686,2]
[330507055,1719532240075,-153.0,0.00033716,2]
[330507056,1719532240085,-153.0,0.00033716,2]
[330507057,1719532240095,-153.0,0.00033716,2]
[330507058,1719532240106,-153.0,0.00033716,2]
[330507059,1719532240116,-615.66685087,0.00033842,2]
[330507060,1719532240129,-6843.41519328,0.00033842,2]
[330507061,1719532240139,-5273.74735403,0.00033842,4]
[330507062,1719532240149,-152.5162129,0.00033963,7]
[330507063,1719532240159,-151.58662637,0.00034158,7]
[330507064,1719532240170,-153.06457886,0.00034349,7]
[330507065,1719532240180,-3717.6263978,0.00034458,4]
[330507066,1719532240190,-153.06457886,0.00034508,7]
[330507067,1719532240199,-151.58662637,0.00034556,7]
[330507068,1719532240209,-4131.84570146,0.00034559,4]
[330507069,1719532240219,-1482.40812518,0.0003458,4]
[330507070,1719532240229,-962.85163989,0.00034592,4]
[330507089,1719532341913,188.74,0.00026,120]
[330507090,1719532342304,153.54926433,0.00028405,2]
[330507091,1719532342870,153.54926433,0.0002889,2]
[330507092,1719532604786,273.37336231,9.9e-05,2]
[330507093,1719532613900,235.60219224,9.9e-05,2]
[330507095,1719532632906,156.3627861,9.9e-05,30]
[330507096,1719532646487,154.82195475,9.9e-05,2]
[330507097,1719532654742,155.11679265,0.00012,2]
[330507098,1719532682193,154.83742071,0.00012,2]
[330507099,1719532683628,155.39877324,0.00012,2]
[330507102,1719532775987,155.37362925,9.999e-05,2]
[330507103,1719532776513,154.86835263,9.999e-05,2]
[330507104,1719532792239,203.13024454,9.999e-05,2]
[330507105,1719532846865,1229.49621454,0.0001212,2]
[330507106,1719532849124,402.69286276,9.999e-05,2]
[330507107,1719533014435,309.6439095,9.999e-05,2]
[330507109,1719533026903,195.45518522,0.0001212,2]
[330507110,1719533141102,-166.019458,0.00021096,2]
[330507111,1719533141123,-149.74004393,0.00028432,2]
[330507112,1719533232905,-166.568317,0.00021096,2]
[330507113,1719533232924,-150.0,0.000239,2]
[330507114,1719533232945,-100.25995607,0.00028432,2]
[330507115,1719533232965,-164.09138626,0.00028627,2]
[330507116,1719533232985,-258.2229,0.00028727,2]
[330507117,1719533233005,-154.48428166,0.00028744,2]
[330507118,1719533233026,-154.86064257,0.00029175,2]
[330507119,1719533233046,-934.41055246,0.00029328,2]
[330507120,1719533236098,-2593.39439954,0.00029328,2]
[330507121,1719533236118,-153.82452338,0.00029572,2]
[330507122,1719533236138,-154.48428166,0.00029897,2]
[330507123,1719533236157,-153.82452338,0.00030708,7]
[330507124,1719533236177,-153.82452338,0.00030798,7]
[330507125,1719533236196,-153.82452338,0.00030882,7]
[330507126,1719533236215,-400.0,0.00031186,2]
[330507127,1719533236240,-400.0,0.00031186,2]
[330507128,1719533236261,-8397.07680281,0.00031187,2]
[330507129,1719533247093,-154.48428166,0.00028072,2]
[330507130,1719533247116,-153.82452338,0.00028183,2]
[330507131,1719533247136,-154.48428166,0.00028405,2]
[330507132,1719533247156,-153.82452338,0.00029426,2]
[330507133,1719533247175,-154.48428166,0.00029927,2]
[330507134,1719533247195,-154.48428166,0.00029946,2]
[330507135,1719533247215,-154.48428166,0.00030393,7]
[330507136,1719533247236,-266.87252575,0.00031187,2]
[330507138,1719533251972,10000.0,0.000225,30]
[330507139,1719533253100,-233.52425744,0.00031187,2]
[330507141,1719533277381,10000.0,0.000225,30]
[330507145,1719533367899,505.45153777,0.00029999,2]
[330507147,1719533386760,156.42887627,0.00027272,2]
[330507207,1719533432131,-316.23475701,0.00029979,2]
[330507208,1719533432143,-553.4887,0.00029979,2]
[330507582,1719533437953,-1254.50230656,0.00029979,2]
[330507583,1719533437963,-400.0,0.00031186,2]
[330507584,1719533437973,-881.66774575,0.00031187,2]
[330507585,1719533438011,-763.53134895,0.00031187,2]
[330507586,1719533438024,-1000.5391485,0.00031187,2]
[330507604,1719533440103,-13356.7881708,0.00031187,2]
[330507606,1719533440112,-154.48428166,0.00031215,7]
[330507608,1719533440122,-287.44172301,0.00031252,2]
[330507609,1719533440132,-153.82452338,0.0003129,7]
[330507610,1719533440142,-153.82452338,0.00031849,7]
[330507611,1719533440151,-154.48428166,0.00032789,7]
[330507612,1719533440161,-154.48428166,0.00032972,7]
[330507613,1719533440171,-153.82452338,0.00033044,7]
[330507614,1719533440181,-154.48428166,0.00033095,7]
[330507615,1719533440191,-154.48428166,0.00033419,7]
[330507616,1719533440201,-153.82452338,0.00033491,7]
[330507617,1719533440211,-4995.47476237,0.00033523,2]
[330507619,1719533443171,-286.94104599,0.00033523,2]
[330507620,1719533443180,-544.10323058,0.00033607,2]
[330507621,1719533443190,-154.48428166,0.00033618,7]
[330507622,1719533443199,-153.82452338,0.00033643,7]
[330507623,1719533443208,-153.0,0.00033707,2]
[330507624,1719533443218,-153.0,0.00033707,2]
[330507625,1719533443227,-153.0,0.00033707,2]
[330507626,1719533443236,-153.0,0.00033718,2]
[330507627,1719533443246,-153.0,0.00033718,2]
[330507628,1719533443255,-153.0,0.00033729,2]
[330507629,1719533443265,-154.86064257,0.00033869,7]
[330507630,1719533443274,-287.44172297,0.00034178,2]
[330507631,1719533443284,-340.0,0.00034304,2]
[330507632,1719533443294,-1501.26270931,0.00034317,4]
[330507633,1719533443303,-597.61557581,0.00034418,4]
[330507634,1719533443313,-341.22193416,0.00034418,4]
[330507641,1719533446158,-757.13442626,0.00034418,4]
[330507642,1719533446168,-842.54666328,0.00034418,4]
[330507643,1719533446178,-1098.35636042,0.00034418,4]
[330507644,1719533446188,-713.8715386,0.00034418,4]
[330507645,1719533446197,-154.48428166,0.0003442,7]
[330507646,1719533446208,-723.68394442,0.00034422,4]
[330507647,1719533446217,-635.54810645,0.00034422,4]
[330507649,1719533446228,-4131.84570146,0.00034458,4]
[330507651,1719533446238,-476.86786638,0.00034458,2]
[330507652,1719533446387,-13.35329339,0.00034458,2]
[330507653,1719533446398,-322.01145644,0.00034458,4]
[330507654,1719533446408,-384.42525017,0.00034462,4]
[330507657,1719533532974,562.12754947,0.00023007,3]
[330507658,1719533532993,37.87245053,0.00023007,3]
[330507659,1719533533389,727.12754947,0.00020592,2]
[330507660,1719533533410,138.00477934,0.00020592,2]
[330507662,1719533836938,170.0,0.0001401,2]
[330507663,1719534273413,524.60290255,9.999e-05,2]
[330507664,1719534318817,565.7116958,9.999e-05,2]
[330507665,1719534350212,-309.52024462,0.00014999,2]
[330507666,1719534350233,-311.53900559,0.00016255,2]
[330507667,1719534426113,-184.12665412,0.00014794,2]
[330507668,1719534431105,-24.70310767,0.00014794,2]
[330507669,1719534431127,-301.66699658,0.00014794,2]
[330507670,1719534431146,-161.20318611,0.00014999,2]
[330507671,1719534431166,-293.28118925,0.00016255,2]
[330507672,1719534436102,-250.0,0.00016255,2]
[330507673,1719534441101,-120.6474963,0.00016255,2]
[330507674,1719534441126,-259.69772977,0.00016255,2]
[330507675,1719534451105,-227.88919192,0.00018899,2]
[330507676,1719534451129,-166.568317,0.00021096,2]
[330507677,1719534451148,-154.82195475,0.00022579,2]
[330507678,1719534451168,-262.035752,0.00025238,2]
[330507679,1719534451189,-620.35366631,0.0002648,2]
[330507680,1719534451211,-153.82452339,0.000281,2]
[330507681,1719534451231,-153.82452339,0.00029092,2]
[330507682,1719534451251,-300.0,0.00029323,2]
[330507683,1719534451271,-300.0,0.00029323,2]
[330507684,1719534451289,-1984.03992015,0.00029861,2]
[330507685,1719534547154,-154.82195475,0.00016255,2]
[330507686,1719534547173,-199.30227023,0.00017932,2]
[330507687,1719534549162,-267.99732879,0.00028,2]
[330507688,1719534549187,-32.00267121,0.00029421,2]
[330507689,1719534580444,166.568317,0.00021096,2]
[330507705,1719534632223,-122.85797137,0.00029421,2]
[330507706,1719534632240,-1179.14202863,0.00029813,2]
[330507707,1719534632415,-752.41827726,0.00029813,2]
[330507708,1719534632425,-460.23380956,0.00029813,2]
[330507895,1719534638234,-2318.14397824,0.00029813,2]
[330507897,1719534638244,-1103.33519031,0.00029901,2]
[330507898,1719534638254,-318.18757632,0.00029903,2]
[330507899,1719534638269,-319.53677074,0.00029979,2]
[330507900,1719534638279,-208.75334757,0.00029979,2]
[330507901,1719534638289,-154.82195475,0.00029999,2]
[330507902,1719534638298,-286.35715775,0.00029999,2]
[330507903,1719534638308,-1542.17520118,0.00030229,4]
[330507904,1719534638318,-24900.0,0.0003057,2]
[330507905,1719534638327,-154.48428167,0.00030952,7]
[330507906,1719534638337,-154.48428167,0.00031095,7]
[330507907,1719534638347,-547.87912524,0.00031265,2]
[330507908,1719534638358,-154.48428167,0.00031365,7]
[330507909,1719534638368,-153.82452339,0.00032053,7]
[330507910,1719534638379,-221.51902791,0.00032229,4]
[330507911,1719534638389,-154.82195475,0.00032229,4]
[330507912,1719534638398,-155.57372186,0.00032272,7]
[330507913,1719534638408,-241.31397283,0.00033292,4]
[330507914,1719534638418,-205.45153777,0.00033592,13]
[330507915,1719534638427,-154.48428167,0.00033692,7]
[330507916,1719534638437,-547.8791252,0.00033698,2]
[330507917,1719534638446,-153.0,0.00033751,2]
[330507918,1719534638457,-153.0,0.00033751,2]
[330507919,1719534638467,-153.0,0.00033751,2]
[330507920,1719534638476,-153.0,0.00033751,2]
[330507921,1719534638486,-153.0,0.00033752,2]
[330507922,1719534638495,-153.0,0.00033752,2]
[330507923,1719534638505,-401.69132048,0.00033807,4]
[330507924,1719534638515,-153.82452339,0.00033884,7]
[330507925,1719534638524,-5282.41580836,0.00034065,2]
[330507926,1719534638534,-833.00477689,0.00034388,4]
[330507927,1719534638544,-285.5754507,0.00034418,4]
[330507928,1719534638554,-694.65587847,0.00034567,4]
[330507929,1719534638564,-2854.04613147,0.00034588,4]
[330507930,1719534638574,-1098.35636042,0.00034623,4]
[330507931,1719534638584,-713.8715386,0.00034634,4]
[330507932,1719534638594,-458.54129141,0.0003467,4]
[330507933,1719534638604,-154.94758269,0.00034672,4]
[330507934,1719534638614,-5552.49958317,0.00034762,7]
[330507935,1719534638625,-276.11669524,0.00034762,4]
[330507936,1719534638636,-396.56128429,0.00034771,4]
[330507937,1719534638647,-408.23063402,0.00034811,4]
[330507938,1719534638657,-389.102261,0.00034995,2]
[330507939,1719534638667,-313.549723,0.00034995,2]
[330507940,1719534638677,-156.774862,0.00034995,2]
[330507941,1719534638687,-174.541413,0.00034995,2]
[330507942,1719534638696,-174.541409,0.00034995,2]
[330507943,1719534638707,-156.774861,0.00034995,2]
[330507944,1719534638717,-500.0,0.00035,30]
[330507945,1719534638727,-389.102261,0.00035432,2]
[330507946,1719534638737,-313.549723,0.00035432,2]
[330507947,1719534638746,-154.86064258,0.00035566,7]
[330507948,1719534638756,-200.0,0.00035806,120]
[330507949,1719534638766,-154.48428167,0.00035806,7]
[330507950,1719534638775,-389.102261,0.0003587,2]
[330507951,1719534638785,-313.549723,0.0003587,2]
[330507952,1719534638795,-272.15778431,0.00035999,4]
[330507953,1719534638804,-501.12940127,0.00036,120]
[330507954,1719534638814,-200.0,0.00036129,120]
[330507955,1719534638823,-547.8791252,0.0003613,2]
[330507956,1719534638833,-389.102261,0.00036307,2]
[330507957,1719534638843,-313.549723,0.00036307,2]
[330507958,1719534638854,-389.102261,0.00036745,2]
[330507959,1719534638863,-313.549723,0.00036745,2]
[330507960,1719534638873,-179.71396344,0.00037523,4]
[330507961,1719534638882,-238.39255013,0.00037587,4]
[330507962,1719534638891,-262.035752,0.00037857,2]
[330507963,1719534638900,-6070.46433457,0.0003799,5]
[330507964,1719534638910,-154.48428167,0.00038246,7]
[330507965,1719534638919,-152.08878095,0.00038359,7]
[330507966,1719534638930,-547.8791252,0.00038563,2]
[330507967,1719534638940,-153.82452339,0.0003899,7]
[330507968,1719534638949,-16932.54464442,0.00039899,3]
[330507969,1719534638960,-161.898459,0.0004,7]
[330507970,1719534638969,-1708.08,0.0004,120]
[330507971,1719534638979,-871.92,0.0004,120]
[330507972,1719534638988,-224.43503674,0.00040278,4]
[330507973,1719534638998,-153.82452339,0.0004028,30]
[330507974,1719534639008,-158.57138068,0.00040684,4]
[330507975,1719534639019,-5085.7205036,0.00040895,2]
[330507976,1719534639030,-308.47949848,0.00040918,2]
[330507977,1719534639040,-300.0,0.0004096,2]
[330507978,1719534639051,-1000.0,0.00040977,2]
[330507979,1719534639062,-2000.0,0.00040994,2]
[330507980,1719534639072,-1000.0,0.00040994,21]
[330507981,1719534639081,-1000.0,0.00040994,21]
[330507982,1719534639092,-151.0,0.00040995,7]
[330507983,1719534639102,-151.0,0.00040995,7]
[330507984,1719534639112,-151.0,0.00040995,7]
[330507985,1719534639122,-547.8791252,0.00040995,2]
[330507986,1719534639133,-88888.0,0.00040995,5]
[330507987,1719534639143,-186.88,0.00041065,3]
[330507988,1719534639153,-2102.49635209,0.00041074,4]
[330507989,1719534639164,-1495.07,0.00041074,3]
[330507990,1719534639177,-747.53,0.00041074,3]
[330507991,1719534639187,-373.77,0.00041074,3]
[330507992,1719534639198,-560.69,0.00041074,3]
[330507993,1719534639208,-13327.18043062,0.00041085,7]
[330507994,1719534639219,-151.0,0.00041085,7]
[330507995,1719534639229,-151.0,0.00041085,7]
[330507996,1719534639240,-31537.4452813,0.00041085,4]
[330507997,1719534639251,-155.0,0.0004109,42]
[330507998,1719534639262,-421.881083,0.00041094,7]
[330507999,1719534639272,-421.881083,0.00041094,7]
[330508000,1719534639282,-421.881083,0.00041094,7]
[330508001,1719534639292,-421.881083,0.00041094,7]
[330508002,1719534639301,-421.881083,0.00041094,7]
[330508003,1719534639311,-421.881083,0.00041094,7]
[330508004,1719534639320,-421.881083,0.00041094,7]
[330508005,1719534639330,-421.881083,0.00041094,7]
[330508006,1719534639340,-421.881083,0.00041094,7]
[330508007,1719534639351,-421.881083,0.00041094,7]
[330508008,1719534639361,-421.881083,0.00041094,7]
[330508009,1719534639372,-421.881083,0.00041094,7]
[330508010,1719534639381,-421.881083,0.00041094,7]
[330508011,1719534639391,-421.881083,0.00041094,7]
[330508012,1719534639401,-421.881083,0.00041094,7]
[330508013,1719534639411,-421.881083,0.00041094,7]
[330508014,1719534639421,-421.881083,0.00041094,7]
[330508015,1719534639432,-421.881083,0.00041094,7]
[330508016,1719534639442,-151.0,0.00041094,7]
[330508017,1719534639452,-151.0,0.00041094,7]
[330508018,1719534639463,-151.0,0.00041094,7]
[330508019,1719534639473,-151.0,0.00041094,7]
[330508020,1719534639483,-151.0,0.00041094,7]
[330508021,1719534639494,-151.0,0.00041094,7]
[330508022,1719534639504,-151.0,0.00041094,7]
[330508023,1719534639513,-151.0,0.00041094,7]
[330508024,1719534639524,-151.0,0.00041094,7]
[330508025,1719534639534,-435.220772,0.00041094,7]
[330508026,1719534639545,-435.220772,0.00041094,7]
[330508027,1719534639555,-151.0,0.00041094,7]
[330508028,1719534639566,-158.998507,0.00041094,7]
[330508029,1719534639576,-158.998507,0.00041094,7]
[330508030,1719534639586,-619.79,0.00041095,120]
[330508031,1719534639596,-500.72,0.00041095,120]
[330508032,1719534639607,-500.0,0.00041095,120]
[330508033,1719534639618,-500.0,0.00041095,120]
[330508034,1719534639629,-475.63954898,0.00041095,120]
[330508041,1719534640380,-172.3010942,0.00029979,2]
[330508042,1719534640391,-24.36045102,0.00041095,120]
[330508043,1719534640401,-500.0,0.00041095,120]
[330508044,1719534640412,-500.0,0.00041095,120]
[330508045,1719534640422,-743.1,0.00041095,120]
[330508046,1719534640431,-500.0,0.00041095,120]
[330508047,1719534640442,-500.0,0.00041095,120]
[330508048,1719534640452,-500.0,0.00041095,120]
[330508049,1719534640464,-500.0,0.00041095,120]
[330508050,1719534640474,-760.52,0.00041095,120]
[330508051,1719534640484,-500.0,0.00041095,120]
[330508052,1719534640494,-537.56,0.00041095,120]
[330508053,1719534640504,-500.0,0.00041095,120]
[330508054,1719534640514,-676.03,0.00041095,120]
[330508055,1719534640523,-699.86,0.00041095,120]
[330508056,1719534640533,-500.0,0.00041095,120]
[330508057,1719534640543,-500.0,0.00041095,120]
[330508058,1719534640553,-500.0,0.00041095,120]
[330508059,1719534640564,-500.0,0.00041095,120]
[330508060,1719534640574,-286.91087026,0.00041095,120]
[330508061,1719534640584,-500.0,0.00041095,120]
[330508062,1719534640593,-500.0,0.00041095,120]
[330508063,1719534640603,-500.0,0.00041095,120]
[330508064,1719534640614,-500.0,0.00041095,120]
[330508065,1719534640625,-642.39,0.00041095,120]
[330508066,1719534640636,-570.98,0.00041095,120]
[330508067,1719534640646,-500.0,0.00041095,120]
[330508068,1719534640656,-500.0,0.00041095,120]
[330508069,1719534640666,-500.0,0.00041095,120]
[330508070,1719534640676,-500.0,0.00041095,120]
[330508071,1719534640686,-500.0,0.00041095,120]
[330508072,1719534640697,-500.0,0.00041095,120]
[330508073,1719534640708,-500.0,0.00041095,120]
[330508074,1719534640718,-600.15547649,0.00041095,120]
[330508075,1719534640727,-500.0,0.00041095,20]
[330508076,1719534640737,-500.0,0.00041095,120]
[330508077,1719534640747,-500.0,0.00041095,120]
[330508078,1719534640756,-500.0,0.00041095,120]
[330508079,1719534640766,-500.0,0.00041095,120]
[330508080,1719534640775,-500.0,0.00041095,120]
[330508081,1719534640784,-500.0,0.00041095,120]
[330508082,1719534640794,-500.0,0.00041095,120]
[330508083,1719534640803,-500.0,0.00041095,120]
[330508084,1719534640812,-707.81,0.00041095,2]
[330508085,1719534640821,-500.0,0.00041095,120]
[330508086,1719534640830,-500.0,0.00041095,120]
[330508087,1719534640839,-500.0,0.00041095,120]
[330508088,1719534640848,-500.0,0.00041095,120]
[330508089,1719534640858,-500.0,0.00041095,120]
[330508090,1719534640867,-501.84,0.00041095,120]
[330508091,1719534640876,-526.21392055,0.00041095,120]
[330508092,1719534640885,-500.0,0.00041095,120]
[330508093,1719534640894,-500.0,0.00041095,120]
[330508094,1719534640904,-250.0,0.00041095,120]
[330508095,1719534640913,-501.43,0.00041095,120]
[330508096,1719534640922,-500.0,0.00041095,120]
[330508097,1719534640931,-500.0,0.00041095,120]
[330508098,1719534640941,-500.0,0.00041095,120]
[330508099,1719534640951,-500.0,0.00041095,120]
[330508100,1719534640962,-562.47531205,0.00041095,120]
[330508101,1719534640971,-561.64,0.00041095,120]
[330508102,1719534640981,-500.0,0.00041095,120]
[330508103,1719534640990,-820.97,0.00041095,120]
[330508104,1719534640999,-1347.33,0.00041095,120]
[330508105,1719534641008,-500.0,0.00041095,120]
[330508106,1719534641017,-500.0,0.00041095,120]
[330508107,1719534641027,-500.0,0.00041095,30]
[330508108,1719534641037,-500.0,0.00041095,120]
[330508109,1719534641047,-500.0,0.00041095,120]
[330508110,1719534641056,-500.0,0.00041095,120]
[330508111,1719534641066,-500.0,0.00041095,120]
[330508112,1719534641076,-500.0,0.00041095,120]